bitfinex/quotes_ETHUSD_20250916
["timestamp","ask_amount","ask_price","bid_price","bid_amount"]
[1758028426983,15.59751841,4508.2,4508.1,0.00080001]
[1758028427392,16.39463257,4508.2,4508.1,0.00080001]
[1758028428282,15.9265664,4508.2,4508.1,0.00080001]
[1758028428899,15.9265664,4508.2,4508.1,0.00180001]
[1758028429397,17.12268666,4508.2,4508.1,0.00180001]
[1758028429562,17.12291138,4508.2,4508.1,0.00180001]
[1758028431188,15.92679112,4508.2,4508.1,0.00180001]
[1758028434692,15.49249112,4508.2,4508.1,0.00180001]
[1758028434901,15.92859112,4508.2,4508.1,0.00180001]
[1758028435197,15.928766,4508.2,4508.1,0.00180001]
[1758028436796,15.59971801,4508.2,4508.1,0.00180001]
[1758028437168,3.01037703,4507.8,4507.7,0.001]
[1758028437369,12.04763811,4507.8,4507.7,0.001]
[1758028438503,12.67373811,4507.8,4507.7,0.001]
[1758028438679,13.16003811,4507.8,4507.7,0.001]
[1758028438878,13.59613811,4507.8,4507.7,0.001]
[1758028439181,14.30052636,4507.8,4507.7,0.001]
[1758028440583,13.86442636,4507.8,4507.7,0.001]
[1758028441401,14.30052636,4507.8,4507.7,0.001]
[1758028443007,3.01072157,4507.1,4507.0,0.1028]
[1758028443309,3.01082003,4506.9,4506.1,7.24869556]
[1758028443617,3.21847903,4506.9,4506.2,5.01948509]
[1758028443922,3.69696674,4506.9,4506.8,0.4106]
[1758028444281,3.69696674,4506.9,4506.8,0.8101]
[1758028444977,3.69696674,4506.9,4506.8,0.9129]
[1758028445578,4.36398099,4506.9,4506.8,0.9129]
[1758028446182,4.36318099,4506.9,4506.8,0.9129]
[1758028446778,4.4880475,4506.9,4506.8,0.9129]
[1758028446975,5.28720018,4506.9,4506.8,0.4106]
[1758028447193,4.4880475,4506.9,4506.8,0.4106]
[1758028447624,4.4880475,4506.9,4506.8,0.4114]
[1758028448197,4.4880475,4506.9,4506.8,0.1218]
[1758028449209,4.48846192,4506.9,4506.8,0.1218]
[1758028450719,7.69652212,4506.9,4506.8,0.1218]
[1758028451017,10.05453928,4506.9,4506.8,0.1218]
[1758028451429,10.85583928,4506.9,4506.8,0.1218]
[1758028451727,10.0938822,4506.9,4506.8,0.1218]
[1758028452027,11.29193928,4506.9,4506.8,0.1218]
[1758028452230,11.29191632,4506.9,4506.8,0.1218]
[1758028452893,10.85581632,4506.9,4506.8,0.1218]
[1758028453229,10.85568974,4506.9,4506.8,0.1218]
[1758028453423,10.36938974,4506.9,4506.8,0.1218]
[1758028453637,10.05438974,4506.9,4506.8,0.4114]
[1758028453820,8.89442966,4506.9,4506.8,0.4114]
[1758028454327,7.48835312,4506.9,4506.8,0.9137]
[1758028454833,7.48835312,4506.9,4506.8,0.8109]
[1758028455014,7.48835312,4506.9,4506.8,0.4114]
[1758028456221,7.48835312,4506.9,4506.8,0.8109]
[1758028456731,4.48835312,4506.9,4506.8,0.9137]
[1758028460429,4.48835312,4506.9,4506.8,0.8109]
[1758028460628,5.28704021,4506.9,4506.8,0.8109]
[1758028461051,5.28704518,4506.9,4506.8,0.8109]
[1758028461221,5.28704208,4506.9,4506.8,0.4114]
[1758028461422,4.62002783,4506.9,4506.8,0.4114]
[1758028463153,4.62002783,4506.9,4506.8,0.8109]
[1758028463717,4.62202783,4506.9,4506.8,0.4114]
[1758028464630,4.622177,4506.9,4506.8,0.4114]
[1758028464829,4.622177,4506.9,4506.8,0.8109]
[1758028466291,0.68850834,4506.9,4506.8,0.9137]
[1758028466779,1.28761052,4506.9,4506.8,0.9137]
[1758028467552,3.50643055,4506.9,4506.8,0.9137]
[1758028467757,1.28761052,4506.9,4506.8,0.9137]
[1758028467953,3.50643055,4506.9,4506.8,0.9137]
[1758028468385,2.90732837,4506.9,4506.8,0.4114]
[1758028468546,3.03214353,4506.9,4506.8,0.4114]
[1758028468879,2.90733152,4506.9,4506.8,0.4114]
[1758028469484,3.03214696,4506.9,4506.8,0.4114]
[1758028469688,2.90733152,4506.9,4506.8,0.4114]
[1758028470042,3.0321473,4506.9,4506.8,0.1218]
[1758028471587,3.0313473,4506.9,4506.8,0.1218]
[1758028472364,3.0313473,4506.9,4506.8,0.4186]
[1758028474786,3.03135737,4506.9,4506.8,0.4186]
[1758028476669,2.69850774,4506.9,4506.8,0.4186]
[1758028476890,3.03139278,4506.9,4506.8,0.4186]
[1758028477295,3.03139278,4506.9,4506.8,0.1218]
[1758028477492,3.78869278,4506.9,4506.8,0.1218]
[1758028478165,3.32939278,4506.9,4506.8,0.1218]
[1758028478782,3.32938684,4506.9,4506.8,0.1218]
[1758028479292,3.03138684,4506.9,4506.8,0.1218]
[1758028479456,2.90655495,4506.9,4506.8,0.1218]
[1758028479660,3.20455495,4506.9,4506.8,0.1218]
[1758028479858,3.03138151,4506.9,4506.8,0.1218]
[1758028480484,2.90655495,4506.9,4506.8,0.4186]
[1758028480679,2.90654799,4506.9,4506.8,0.9209]
[1758028481083,2.90654799,4506.9,4506.8,0.8181]
[1758028481765,2.90654799,4506.9,4506.8,0.4186]
[1758028482164,2.90655639,4506.9,4506.8,0.4186]
[1758028482660,3.03139719,4506.9,4506.8,0.4186]
[1758028482855,4.23849719,4506.9,4506.8,0.1218]
[1758028483088,5.03733345,4506.9,4506.8,0.1218]
[1758028483306,5.82933345,4506.9,4506.8,0.1218]
[1758028483464,6.75394499,4506.9,4506.8,0.1218]
[1758028485291,5.95510873,4506.9,4506.8,0.1218]
[1758028488730,4.58069719,4506.9,4506.8,0.1218]
[1758028488933,5.03049719,4506.9,4506.8,0.1218]
[1758028490429,5.03055783,4506.9,4506.8,0.1218]
[1758028496861,5.02975783,4506.9,4506.8,0.1218]
[1758028497069,3.82265783,4506.9,4506.8,0.4195]
[1758028497370,4.12165783,4506.9,4506.8,0.1218]
[1758028497673,3.82265783,4506.9,4506.8,0.1218]
[1758028498151,3.82280156,4506.9,4506.8,0.1218]
[1758028499344,3.82280156,4506.9,4506.8,0.4195]
[1758028500137,3.82280156,4506.9,4506.8,0.1218]
[1758028500338,4.5843279,4506.9,4506.8,0.1218]
[1758028500569,5.89879888,4506.9,4506.8,0.1218]
[1758028500929,7.30506328,4506.9,4506.8,0.1218]
[1758028501126,6.1070062,4506.9,4506.8,0.1218]
[1758028501332,7.30617222,4506.9,4506.8,0.1218]
[1758028502569,7.30537222,4506.9,4506.8,0.1218]
[1758028502967,6.37527222,4506.9,4506.8,0.1218]
[1758028503149,7.30537222,4506.9,4506.8,0.1218]
[1758028503860,6.07627222,4506.9,4506.8,0.1218]
[1758028504052,3.8220279,4506.9,4506.8,0.4195]
[1758028505486,3.8220279,4506.9,4506.8,0.1218]
[1758028505802,4.03017998,4506.9,4506.8,0.1218]
[1758028506586,4.32917998,4506.9,4506.8,0.1218]
[1758028506782,6.458446,4506.9,4506.8,0.1218]
[1758028507359,7.32616308,4506.9,4506.8,0.1218]
[1758028507554,5.229346,4506.9,4506.8,0.1218]
[1758028507750,3.8220279,4506.9,4506.8,0.1218]
[1758028508649,3.8220279,4506.9,4506.8,0.4195]
[1758028509056,0.81120787,4506.9,4506.8,0.4195]
[1758028509262,2.90510784,4506.9,4506.8,0.9218]
[1758028509458,3.82930996,4506.9,4506.8,0.4195]
[1758028509659,3.82930996,4506.9,4506.8,0.1218]
[1758028510282,3.0300279,4506.9,4506.8,0.1218]
[1758028510894,5.0511279,4506.9,4506.8,0.1218]
[1758028511094,7.14945378,4506.9,4506.8,0.1218]
[1758028511873,7.14939284,4506.9,4506.8,0.1218]
[1758028514406,6.21928376,4506.9,4506.8,0.1218]
[1758028514610,6.68178376,4506.9,4506.8,0.1218]
[1758028514806,7.14938376,4506.9,4506.8,0.1218]
[1758028515610,8.95021774,4506.9,4506.8,0.1218]
[1758028516016,3.12046926,4506.8,4506.7,0.001]
[1758028516214,6.10209112,4506.8,4506.7,0.001]
[1758028516514,7.33119112,4506.8,4506.7,0.001]
[1758028519387,6.85510341,4506.8,4506.7,0.001]
[1758028519590,6.85494165,4506.8,4506.7,0.001]
[1758028520137,8.53224073,4506.8,4506.7,0.001]
[1758028521823,8.62038882,4506.8,4506.7,0.001]
[1758028522033,7.69028882,4506.8,4506.7,0.001]
[1758028522237,8.15278882,4506.8,4506.7,0.001]
[1758028522440,8.62038882,4506.8,4506.7,0.001]
[1758028524106,7.42216327,4506.8,4506.7,0.001]
[1758028524644,8.61951826,4506.8,4506.7,0.001]
[1758028526327,10.42216327,4506.8,4506.7,0.0018]
[1758028529329,9.49206327,4506.8,4506.7,0.0018]
[1758028529793,9.98626327,4506.8,4506.7,0.0018]
[1758028529996,10.44186327,4506.8,4506.7,0.0018]
[1758028531933,9.98626327,4506.8,4506.7,0.0018]
[1758028532103,9.19306327,4506.8,4506.7,0.3015]
[1758028532514,8.42588106,4506.8,4506.7,0.3015]
[1758028534220,4.22869705,4506.8,4506.7,0.3015]
[1758028535540,4.22859304,4506.8,4506.7,0.3015]
[1758028535721,4.02072022,4506.8,4506.7,0.3015]
[1758028536058,3.93177213,4506.8,4506.7,0.3015]
[1758028536736,3.93177213,4506.8,4506.7,0.8038]
[1758028539488,3.93047332,4506.8,4506.7,0.701]
[1758028539847,3.13847332,4506.8,4506.7,0.8038]
[1758028541205,3.13847332,4506.8,4506.7,0.3015]
[1758028541755,3.13847332,4506.8,4506.7,0.0018]
[1758028542290,3.13848367,4506.8,4506.7,0.0018]
[1758028542491,3.13848367,4506.8,4506.7,0.3015]
[1758028543486,3.13848367,4506.8,4506.7,0.8038]
[1758028544074,3.13848367,4506.8,4506.7,0.701]
[1758028544467,3.13848367,4506.8,4506.7,0.3015]
[1758028545802,3.13848367,4506.8,4506.7,0.701]
[1758028545971,3.13848367,4506.8,4506.7,0.3015]
[1758028546852,3.13768367,4506.8,4506.7,0.3015]
[1758028547306,1.5192409,4506.8,4506.7,0.3015]
[1758028547610,0.002,4506.9,4506.7,3.15530767]
[1758028547759,0.002,4506.9,4506.8,8.47768305]
[1758028547953,0.002,4506.9,4506.8,8.87798305]
[1758028548190,0.002,4506.9,4506.8,9.17768305]
[1758028548919,0.002,4506.9,4506.8,9.28808305]
[1758028551286,0.002,4506.9,4506.8,23.78808305]
[1758028557335,0.002,4506.9,4506.8,26.78808305]
[1758028557536,0.002,4507.4,4507.3,15.2506964]
[1758028557874,0.002,4507.9,4507.8,2.21837703]
[1758028558045,0.002,4507.9,4507.8,7.65739744]
[1758028558239,0.002,4507.9,4507.8,8.13751367]
[1758028558434,0.002,4507.9,4507.8,11.13831367]
[1758028558856,0.002,4507.9,4507.8,11.22719337]
[1758028559060,0.002,4507.9,4507.8,12.28179109]
[1758028560368,0.002,4507.9,4507.8,11.77949109]
[1758028560868,0.7367,4507.9,4507.8,2.2250797]
[1758028561040,8.76306446,4507.9,4507.8,0.0888797]
[1758028561395,13.1119544,4507.9,4507.8,1e-08]
[1758028561686,2.21886926,4506.8,4506.7,0.001]
[1758028561985,3.01086926,4506.8,4506.7,0.001]
[1758028562278,3.74106926,4506.8,4506.7,0.001]
[1758028563058,3.8300124,4506.8,4506.7,0.001]
[1758028566709,6.8300124,4506.8,4506.7,0.001]
[1758028566869,7.0363205,4506.8,4506.7,0.001]
[1758028567297,7.51154581,4506.8,4506.7,0.001]
[1758028568617,7.51154581,4506.8,4506.7,0.0018]
[1758028570212,6.01091849,4506.7,4506.6,1e-08]
[1758028570407,12.35863839,4506.7,4506.6,1e-08]
[1758028570608,12.64643839,4506.7,4506.6,1e-08]
[1758028572128,12.64563839,4506.7,4506.6,1e-08]
[1758028572642,12.73459637,4506.7,4506.6,1e-08]
[1758028574356,7.51225163,4506.7,4506.6,1e-08]
[1758028574505,7.71798805,4506.7,4506.6,1e-08]
[1758028575116,7.27398805,4506.7,4506.6,1e-08]
[1758028575334,7.71648805,4506.7,4506.6,1e-08]
[1758028577142,7.71647746,4506.7,4506.6,1e-08]
[1758028579180,7.71647746,4506.7,4506.6,0.00080001]
[1758028579377,7.24125215,4506.7,4506.6,0.00080001]
[1758028580072,6.79875215,4506.7,4506.6,0.00080001]
[1758028580276,7.27286336,4506.7,4506.6,0.00080001]
[1758028581040,6.79875215,4506.7,4506.6,0.00080001]
[1758028581243,7.27287954,4506.7,4506.6,0.00080001]
[1758028581684,7.62631574,4506.7,4506.6,0.00080001]
[1758028582355,7.18381574,4506.7,4506.6,0.00080001]
[1758028583279,7.62631574,4506.7,4506.6,0.00080001]
[1758028583476,7.18381574,4506.7,4506.6,0.00080001]
[1758028583777,7.62631574,4506.7,4506.6,0.00080001]
[1758028584179,7.18381574,4506.7,4506.6,0.00080001]
[1758028584837,7.18381574,4506.7,4505.8,0.001]
[1758028584838,6.65690319,4506.6,4505.8,0.001]
[1758028585040,6.12176171,4505.8,4505.1,0.01]
[1758028585282,7.18676046,4505.8,4505.1,0.01]
[1758028585481,7.62766046,4505.8,4505.1,0.01]
[1758028585685,12.6436971,4505.8,4505.1,0.01]
[1758028586449,0.792,4505.6,4503.8,0.12]
[1758028586668,0.792,4504.3,4504.0,0.4778]
[1758028586869,2.22015008,4504.2,4504.0,0.4778]
[1758028587104,2.22015008,4504.2,4504.1,0.4878]
[1758028587306,3.01215008,4504.2,4504.1,0.7955]
[1758028587676,0.792,4504.2,4504.1,1.2665]
[1758028587901,2.22000178,4504.6,4504.1,1.40515]
[1758028588077,0.792,4505.0,4504.2,0.9488]
[1758028588285,2.22000795,4504.5,4504.3,0.4778]
[1758028588476,2.22000795,4504.5,4504.4,0.3077]
[1758028588802,2.21996038,4504.6,4504.4,1.2565]
[1758028589010,0.792,4505.0,4504.4,0.3077]
[1758028589201,3.0,4505.2,4504.5,0.4778]
[1758028589202,3.01195293,4504.6,4504.5,0.4778]
[1758028589392,3.01195293,4504.6,4504.5,0.7863]
[1758028589590,0.792,4504.6,4504.5,0.7863]
[1758028590193,3.01195293,4504.6,4504.5,0.7863]
[1758028590508,0.792,4504.6,4504.5,0.7863]
[1758028591097,0.792,4504.6,4504.5,1.2573]
[1758028591292,3.42502161,4504.6,4504.5,1.2573]
[1758028591508,1.20506868,4504.6,4504.5,1.2573]
[1758028591686,0.792,4504.6,4504.5,1.2573]
[1758028592094,0.99853434,4504.6,4504.5,1.2573]
[1758028592287,0.41306868,4504.7,4504.5,6.39906664]
[1758028592612,0.8882596,4505.5,4504.8,2.21981771]
[1758028592824,0.20681546,4505.4,4504.9,5.98703469]
[1758028592977,0.41363092,4505.5,4505.3,0.3077]
[1758028593177,0.41363092,4505.6,4505.4,0.9488]
[1758028593477,0.20681546,4505.7,4505.5,0.9488]
[1758028593690,2.63311615,4505.6,4505.5,0.471]
[1758028593884,0.41365244,4505.6,4505.5,0.7787]
[1758028594130,0.99883698,4505.6,4505.5,0.7787]
[1758028594327,1.20565244,4505.6,4505.5,1.2565]
[1758028596342,0.41365244,4505.6,4505.5,1.2565]
[1758028596712,0.1104,4505.8,4505.5,3.62385457]
[1758028596910,0.1104,4505.8,4505.7,5.01603664]
[1758028597115,0.41365244,4506.0,4505.7,5.01603664]
[1758028597438,0.1096,4506.0,4505.9,0.3077]
[1758028597809,0.52325244,4506.0,4505.9,1.2565]
[1758028598027,0.1096,4506.0,4505.9,1.2565]
[1758028598231,0.52325244,4506.0,4505.9,1.2565]
[1758028598435,0.1096,4506.0,4505.9,1.2565]
[1758028598804,0.31641546,4506.0,4505.9,1.2565]
[1758028599021,0.1096,4506.0,4505.9,1.2565]
[1758028599644,0.1096,4506.0,4505.9,1.2573]
[1758028600743,0.1096,4506.0,4505.9,2.10657891]
[1758028601946,0.1096,4506.0,4505.9,0.3085]
[1758028602219,0.1096,4506.0,4505.9,0.7863]
[1758028602622,0.1096,4506.0,4505.9,0.3085]
[1758028603047,2.3288632,4506.0,4505.9,0.0008]
[1758028603247,2.6072632,4506.0,4505.9,0.0008]
[1758028603809,3.3992632,4506.0,4505.9,0.0008]
[1758028604012,4.46027044,4506.0,4505.9,0.0008]
[1758028604246,4.6670378,4506.0,4505.9,0.0008]
[1758028604553,0.9016,4506.0,4505.9,0.0008]
[1758028604712,0.1096,4506.0,4505.9,1.2573]
[1758028608458,0.1116,4506.0,4505.9,1.2573]
[1758028610976,0.002,4506.0,4505.9,3.47661245]
[1758028611282,0.002,4506.7,4505.9,4.38989312]
[1758028611484,0.01,4506.9,4506.8,2.21886926]
[1758028611670,0.01,4506.9,4506.8,2.21966926]
[1758028611869,0.01,4506.9,4506.8,3.60875795]
[1758028612271,0.01,4506.9,4506.8,6.60875795]
[1758028612476,0.01,4506.9,4506.8,6.58656926]
[1758028612787,0.01,4506.9,4506.8,8.80452807]
[1758028614853,0.01,4506.9,4506.8,6.58656926]
[1758028615398,0.01,4506.9,4506.8,21.08656926]
[1758028618084,0.01,4506.9,4506.8,6.58656926]
[1758028618284,0.01,4506.9,4506.8,6.55136926]
[1758028620509,0.01,4506.9,4506.8,6.55416926]
[1758028620717,0.01,4506.9,4506.8,7.43148015]
[1758028622818,0.0092,4506.9,4506.8,7.43148015]
[1758028623014,0.0092,4506.9,4506.8,21.93148015]
[1758028628240,0.0112,4506.9,4506.8,21.93148015]
[1758028633020,1e-08,4506.9,4506.8,21.93148015]
[1758028633173,0.002,4507.2,4507.1,2.21872157]
[1758028633373,0.002,4507.2,4507.1,6.91682821]
[1758028633572,0.002,4507.2,4507.1,8.208241]
[1758028635796,0.002,4507.2,4507.1,14.22576101]
[1758028636101,0.002,4507.2,4507.1,28.72576101]
[1758028640521,0.002,4507.2,4507.1,29.1799877]
[1758028641337,0.2906,4507.2,4507.1,21.95926769]
[1758028641685,0.7323,4507.2,4507.1,21.95926769]
[1758028642090,0.2906,4507.2,4507.1,21.95926769]
[1758028642501,0.2898,4507.2,4507.1,21.95926769]
[1758028643227,0.7315,4507.2,4507.1,21.95926769]
[1758028643616,0.2898,4507.2,4507.1,21.95926769]
[1758028644000,0.7355,4507.2,4507.1,18.06542669]
[1758028644203,0.7355,4507.2,4507.1,17.28414826]
[1758028644397,0.7355,4507.2,4507.1,2.78414826]
[1758028645514,0.7355,4507.2,4507.1,0.1112]
[1758028645717,0.7355,4507.2,4507.1,0.0008]
[1758028646630,0.7315,4507.2,4507.1,0.0008]
[1758028646854,1.42198223,4507.2,4507.1,0.0008]
[1758028647061,1.41798223,4507.2,4507.1,0.0008]
[1758028647372,1.42198223,4507.2,4507.1,0.0008]
[1758028647725,3.63985457,4507.2,4507.1,0.0008]
[1758028647957,4.22589872,4507.2,4507.1,0.0008]
[1758028648467,4.22581464,4507.2,4507.1,0.0008]
[1758028648662,4.43350073,4507.2,4507.1,0.0008]
[1758028649268,4.22581464,4507.2,4507.1,0.0008]
[1758028649871,5.22543216,4507.2,4507.1,0.0008]
[1758028650432,5.01781464,4507.2,4507.1,0.0008]
[1758028650968,0.289,4507.2,4507.1,0.0008]
[1758028651129,0.0004,4507.2,4507.1,0.0008]
[1758028651464,0.2905,4507.2,4507.1,2.21952157]
[1758028651673,0.2905,4507.2,4507.1,2.24170878]
[1758028652171,0.0004,4507.2,4507.1,2.24170878]
[1758028652582,0.0004,4507.2,4507.1,2.21952157]
[1758028652872,0.2905,4507.2,4507.1,2.21952157]
[1758028653029,0.0004,4507.2,4507.1,2.21952157]
[1758028653427,0.0004,4507.2,4507.1,11.43982889]
[1758028653963,0.0004,4507.2,4507.1,5.42230888]
[1758028656666,0.0004,4507.2,4507.1,5.53270888]
[1758028656858,0.0004,4507.2,4507.1,3.58762157]
[1758028657166,0.0004,4507.2,4507.1,18.10980878]
[1758028657465,0.0004,4507.2,4507.1,18.08762157]
[1758028660168,0.0004,4507.2,4507.1,3.58762157]
[1758028660375,0.0004,4507.2,4507.1,6.58762157]
[1758028660669,0.0004,4507.2,4507.1,7.46826487]
[1758028661904,0.0004,4507.2,4507.1,11.71826487]
[1758028664092,0.0004,4507.2,4507.1,11.71926487]
[1758028664477,0.0016,4507.4,4507.3,2.21862312]
[1758028664682,0.0016,4507.4,4507.3,2.21942312]
[1758028664880,0.0016,4507.4,4507.3,6.92661192]
[1758028665190,0.0016,4507.4,4507.3,7.87091192]
[1758028667962,0.0016,4507.4,4507.3,12.12091192]
[1758028672097,0.0016,4507.4,4507.3,11.66691192]
[1758028672417,0.0016,4507.4,4507.3,10.86321192]
[1758028672816,0.0016,4507.4,4507.3,11.17661192]
[1758028672994,0.0008,4507.4,4507.3,11.17661192]
[1758028673320,0.0008,4507.4,4507.3,11.66691192]
[1758028674916,0.0008,4507.4,4507.3,12.11861192]
[1758028675823,0.0008,4507.4,4507.3,17.13441526]
[1758028677294,0.0008,4507.4,4507.3,16.68271526]
[1758028677794,0.0008,4507.4,4507.3,16.19241526]
[1758028678330,0.0008,4507.4,4507.3,17.13001526]
[1758028679607,0.0008,4507.4,4507.3,16.67831526]
[1758028679825,0.2955,4507.4,4507.3,15.87901526]
[1758028680326,0.0008,4507.4,4507.3,15.87901526]
[1758028682245,0.0008,4507.4,4507.3,16.66531526]
[1758028682533,0.0008,4507.4,4507.3,16.66631526]
[1758028683793,0.0008,4507.4,4507.3,16.36061526]
[1758028684129,0.0008,4507.4,4507.3,16.66631526]
[1758028684542,0.006,4508.2,4508.1,2.2182294]
[1758028684543,0.002,4508.2,4508.1,2.2182294]
[1758028684740,0.002,4508.2,4508.1,2.98406441]
[1758028684911,0.002,4508.2,4508.1,4.23516441]
[1758028685635,0.002,4508.2,4508.1,4.21298212]
[1758028685849,0.002,4508.2,4508.1,4.30184701]
[1758028686353,0.002,4508.2,4508.1,4.3240293]
[1758028686514,0.002,4508.2,4508.1,4.30184701]
[1758028686704,0.002,4508.2,4508.1,4.3240293]
[1758028687142,0.002,4508.2,4508.1,4.30184701]
[1758028687642,0.2735,4508.2,4508.1,7.97848546]
[1758028687843,0.2735,4508.2,4508.1,2.2190294]
[1758028688006,0.7321,4508.2,4508.1,2.2190294]
[1758028688525,0.7321,4508.2,4508.1,16.7190294]
[1758028689537,0.2735,4508.2,4508.1,16.7190294]
[1758028689742,0.002,4508.2,4508.1,20.9693294]
[1758028690035,0.002,4508.2,4508.1,27.65221433]
[1758028690805,0.002,4508.2,4508.1,26.40191433]
[1758028691138,0.2735,4508.2,4508.1,26.40191433]
[1758028692540,0.2727,4508.2,4508.1,26.40191433]
[1758028692749,0.0012,4508.2,4508.1,27.18821433]
[1758028693667,0.0012,4508.2,4508.1,26.40191433]
[1758028693968,0.7313,4508.2,4508.1,18.38611099]
[1758028694174,0.7313,4508.2,4508.1,16.7190294]
[1758028694673,0.7313,4508.2,4508.1,16.8294294]
[1758028694843,0.7313,4508.2,4508.1,14.6112]
[1758028695048,0.7353,4508.2,4508.1,14.6112]
[1758028695269,0.7353,4508.2,4508.1,16.8294294]
[1758028695466,0.7313,4508.2,4508.1,16.8294294]
[1758028695768,0.7353,4508.2,4508.1,16.8294294]
[1758028696758,0.7353,4508.2,4508.1,2.3294294]
[1758028696958,0.7353,4508.2,4508.1,0.0008]
[1758028698187,1.03103585,4508.2,4508.1,0.0008]
[1758028698361,7.96848354,4508.2,4508.1,0.0008]
[1758028698674,12.4461984,4508.2,4508.1,0.0008]
[1758028698865,12.57072847,4508.2,4508.1,0.0008]
[1758028699045,13.16810333,4508.2,4508.1,0.0008]
[1758028699367,13.1682795,4508.2,4508.1,0.0008]
[1758028699610,14.405917,4508.2,4508.1,0.0008]
[1758028700106,14.19843115,4508.2,4508.1,0.0008]
[1758028700318,14.79594479,4508.2,4508.1,0.0008]
[1758028701410,14.19843115,4508.2,4508.1,0.0018]
[1758028701624,14.79594479,4508.2,4508.1,0.0018]
[1758028701774,14.40570721,4508.2,4508.1,0.0018]
[1758028702290,14.79514997,4508.2,4508.1,0.0018]
[1758028703385,9.05409774,4508.2,4508.1,0.0018]
[1758028703587,3.17579506,4508.2,4508.1,0.0018]
[1758028703785,2.9486802,4508.2,4508.1,0.0018]
[1758028703985,0.7305,4508.2,4508.1,0.0018]
[1758028704186,0.2719,4508.2,4508.1,0.0018]
[1758028704595,0.0004,4508.2,4508.1,0.0018]
[1758028705008,0.2662,4508.2,4508.1,0.0018]
[1758028706313,2.4843802,4508.2,4508.1,0.0018]
[1758028706812,0.2662,4508.2,4508.1,0.0018]
[1758028707855,0.0004,4508.2,4508.1,0.0018]
[1758028708366,0.0004,4508.2,4508.1,3.45791169]
[1758028708507,0.0004,4508.2,4508.1,4.02553451]
[1758028708707,0.0004,4508.2,4508.1,4.11375222]
[1758028709442,0.0004,4508.2,4508.1,1.89552282]
[1758028709764,0.0004,4508.2,4508.1,0.8868]
[1758028710256,0.0004,4508.2,4508.1,3.1050294]
[1758028710410,0.0004,4508.2,4508.1,3.5461294]
[1758028710620,0.0004,4508.2,4508.1,3.56831169]
[1758028711325,0.0004,4508.2,4508.1,18.06831169]
[1758028711629,0.0004,4508.2,4508.1,18.0461294]
[1758028711834,0.0004,4508.2,4508.1,20.07257486]
[1758028712047,0.0004,4508.2,4508.1,23.07257486]
[1758028714651,0.0016,4508.3,4508.2,5.2181802]
[1758028714853,0.0016,4508.3,4508.2,6.1424802]
[1758028715172,0.0016,4508.3,4508.2,6.4346802]
[1758028715508,0.0016,4508.3,4508.2,12.59974843]
[1758028716480,0.0016,4508.3,4508.2,12.15864843]
[1758028717084,0.2674,4508.3,4508.2,11.38404843]
[1758028717285,0.2674,4508.3,4508.2,4.2508]
[1758028717486,0.0016,4508.3,4508.2,6.4689802]
[1758028717801,0.2694,4508.3,4508.2,4.2508]
[1758028717963,0.7316,4508.3,4508.2,4.2508]
[1758028718554,0.2694,4508.3,4508.2,4.2508]
[1758028719201,0.2694,4508.3,4508.2,6.4689802]
[1758028719368,0.0016,4508.3,4508.2,6.7611802]
[1758028719569,0.0016,4508.3,4508.2,4.2508]
[1758028719899,0.2674,4508.3,4508.2,4.2508]
[1758028720082,0.2674,4508.3,4508.2,6.4689802]
[1758028720783,0.0016,4508.3,4508.2,7.2435802]
[1758028721369,0.0016,4508.3,4508.2,2.5111802]
[1758028721688,0.0016,4508.3,4508.2,0.0008]
[1758028721888,0.0016,4508.3,4508.2,2.2189802]
[1758028722424,0.0016,4508.3,4508.2,0.0008]
[1758028722933,3.064131,4508.3,4508.2,0.0008]
[1758028723099,3.3707441,4508.3,4508.2,0.0008]
[1758028723311,3.3699441,4508.3,4508.2,0.0008]
[1758028724727,4.1619441,4508.3,4508.2,0.0008]
[1758028726028,4.36915214,4508.3,4508.2,0.0008]
[1758028726229,4.49348007,4508.3,4508.2,0.0008]
[1758028726401,4.36915214,4508.3,4508.2,0.0008]
[1758028730044,3.90095214,4508.3,4508.2,0.0008]
[1758028730345,2.329331,4508.3,4508.2,0.293]
[1758028730500,2.329331,4508.3,4508.2,0.7754]
[1758028730501,0.1112,4508.3,4508.2,0.7754]
[1758028730700,0.1112,4508.3,4508.2,1.2165]
[1758028732402,0.1112,4508.3,4508.2,0.7754]
[1758028733596,0.0008,4508.3,4508.2,1.2165]
[1758028734824,0.0008,4508.3,4508.2,1.58226427]
[1758028735015,0.0008,4508.3,4508.2,3.567262]
[1758028735518,0.0008,4508.3,4508.2,3.456862]
[1758028735705,0.0008,4508.3,4508.2,3.5450802]
[1758028736831,0.002,4508.4,4508.3,2.218131]
[1758028737006,0.002,4508.4,4508.3,2.218931]
[1758028737221,0.002,4508.4,4508.3,3.420931]
[1758028738151,0.002,4508.4,4508.3,3.77150856]
[1758028738360,0.002,4508.4,4508.3,1.55337756]
[1758028738552,0.002,4508.4,4508.3,16.05337756]
[1758028738756,0.002,4508.4,4508.3,3.77150856]
[1758028739256,0.002,4508.4,4508.3,4.21780856]
[1758028740258,0.002,4508.4,4508.3,1.99967756]
[1758028740655,0.002,4508.4,4508.3,4.21780856]
[1758028741332,0.002,4508.4,4508.3,4.23998987]
[1758028741531,0.002,4508.4,4508.3,7.23998987]
[1758028741734,0.002,4508.4,4508.3,7.21780856]
[1758028741925,0.002,4508.4,4508.3,21.71780856]
[1758028742959,0.002,4508.4,4508.3,15.60287756]
[1758028743137,0.2909,4508.4,4508.3,0.0008]
[1758028743726,2.5089818,4508.4,4508.3,0.0008]
[1758028744061,0.7323,4508.4,4508.3,0.0008]
[1758028744469,0.2909,4508.4,4508.3,0.0008]
[1758028744676,2.5089818,4508.4,4508.3,0.0008]
[1758028745181,3.43431884,4508.4,4508.3,0.0008]
[1758028745354,3.43831884,4508.4,4508.3,0.0008]
[1758028745679,4.23031884,4508.4,4508.3,0.0008]
[1758028745877,4.4376405,4508.4,4508.3,0.0008]
[1758028746453,8.03943288,4508.4,4508.3,0.0008]
[1758028746654,8.6361517,4508.4,4508.3,0.0008]